{"text_format":"3","workbook":"xlsx","n_sheets":4,"sheets":["Краткая сводка","Бюджет","Настройка","Данные диаграммы"],"not_rendered":{"charts":2,"images":1,"defined_names":42},"read":"whole","date_system":"1900"}

{"sheet":"Краткая сводка","index":0,"n_rows":13,"n_cols":14,"rows_kept":13,"merged":[[2,0,4,2],[6,0,8,2],[10,0,12,2]]}
[{"$nulls":13},{"$f":"\"ИНТЕРАКТИВНЫЙ БЮДЖЕТ \"&НазваниеБюджета","v":"ИНТЕРАКТИВНЫЙ БЮДЖЕТ СЕМЬЯ ЕГОРОВЫХ, 2012 год"}]
[]
[{"$f":"'Данные диаграммы'!C38","v":{"v":4000,"d":"4,000р."}}]
[]
[{"$nulls":3},"Доходы"]
[]
[{"$f":"'Данные диаграммы'!C39","v":{"v":5933,"d":"5,933р."}}]
[]
[{"$nulls":3},"Расходы"]
[]
[{"$f":"'Данные диаграммы'!D40&'Данные диаграммы'!C40& \"р.\"","v":"-1933р."}]
[]
[{"$nulls":3},"Движение средств"]

{"sheet":"Бюджет","index":1,"n_rows":131,"n_cols":16,"rows_kept":131,"merged":[[18,1,18,13],[27,1,27,13],[36,1,36,13],[45,1,45,13],[54,1,54,13],[61,1,61,13],[68,1,68,13],[75,1,75,13],[82,1,82,13],[89,1,89,13],[96,1,96,13],[103,1,103,13],[110,1,110,13],[117,1,117,13],[124,1,124,13]]}
[null,null,"Янв.","Февр.","Март","Апр.","Май","Июнь","Июль","Авг.","Сент.","Сент.","Нояб.","Дек.","Год","Ср."]
[]
[]
[]
[null,"Начальная сумма",1000]
[null,"Общие доходы",{"$f":"SUM(tblДоход[jan])","v":4222},{"$f":"SUM(tblДоход[feb])","v":9033},{"$f":"SUM(tblДоход[mar])","v":4000},{"$f":"SUM(tblДоход[apr])","v":4045},{"$f":"SUM(tblДоход[may])","v":9000},{"$f":"SUM(tblДоход[jun])","v":1525},{"$f":"SUM(tblДоход[jul])","v":1500},{"$f":"SUM(tblДоход[aug])","v":6500},{"$f":"SUM(tblДоход[sep])","v":4000},{"$f":"SUM(tblДоход[oct])","v":4000},{"$f":"SUM(tblДоход[nov])","v":9000},{"$f":"SUM(tblДоход[dec])","v":4000},{"$f":"SUM(tblДоход[year])","v":60825},{"$f":"O6/12","v":{"v":5068.75,"d":"5069"}}]
[null,"Общие расходы",{"$f":"SUM(tblСтатьяРасходов_01[jan],tblСтатьяРасходов_02[jan],tblСтатьяРасходов_03[jan],tblСтатьяРасходов_04[jan],tblСтатьяРасходов_05[jan],tblСтатьяРасходов_06[jan],tblСтатьяРасходов_07[jan],tblСтатьяРасходов_08[jan],tblСтатьяРасходов_09[jan],tblСтатьяРасходов_10[jan],tblСтатьяРасходов_11[jan],tblСтатьяРасходов_12[jan],tblСтатьяРасходов_13[jan],tblСтатьяРасходов_14[jan],tblСтатьяРасходов_15[jan])","v":7936},{"$f":"SUM(tblСтатьяРасходов_01[feb],tblСтатьяРасходов_02[feb],tblСтатьяРасходов_03[feb],tblСтатьяРасходов_04[feb],tblСтатьяРасходов_05[feb],tblСтатьяРасходов_06[feb],tblСтатьяРасходов_07[feb],tblСтатьяРасходов_08[feb],tblСтатьяРасходов_09[feb],tblСтатьяРасходов_10[feb],tblСтатьяРасходов_11[feb],tblСтатьяРасходов_12[feb],tblСтатьяРасходов_13[feb],tblСтатьяРасходов_14[feb],tblСтатьяРасходов_15[feb])","v":5243},{"$f":"SUM(tblСтатьяРасходов_01[mar],tblСтатьяРасходов_02[mar],tblСтатьяРасходов_03[mar],tblСтатьяРасходов_04[mar],tblСтатьяРасходов_05[mar],tblСтатьяРасходов_06[mar],tblСтатьяРасходов_07[mar],tblСтатьяРасходов_08[mar],tblСтатьяРасходов_09[mar],tblСтатьяРасходов_10[mar],tblСтатьяРасходов_11[mar],tblСтатьяРасходов_12[mar],tblСтатьяРасходов_13[mar],tblСтатьяРасходов_14[mar],tblСтатьяРасходов_15[mar])","v":5933},{"$f":"SUM(tblСтатьяРасходов_01[apr],tblСтатьяРасходов_02[apr],tblСтатьяРасходов_03[apr],tblСтатьяРасходов_04[apr],tblСтатьяРасходов_05[apr],tblСтатьяРасходов_06[apr],tblСтатьяРасходов_07[apr],tblСтатьяРасходов_08[apr],tblСтатьяРасходов_09[apr],tblСтатьяРасходов_10[apr],tblСтатьяРасходов_11[apr],tblСтатьяРасходов_12[apr],tblСтатьяРасходов_13[apr],tblСтатьяРасходов_14[apr],tblСтатьяРасходов_15[apr])","v":5858},{"$f":"SUM(tblСтатьяРасходов_01[may],tblСтатьяРасходов_02[may],tblСтатьяРасходов_03[may],tblСтатьяРасходов_04[may],tblСтатьяРасходов_05[may],tblСтатьяРасходов_06[may],tblСтатьяРасходов_07[may],tblСтатьяРасходов_08[may],tblСтатьяРасходов_09[may],tblСтатьяРасходов_10[may],tblСтатьяРасходов_11[may],tblСтатьяРасходов_12[may],tblСтатьяРасходов_13[may],tblСтатьяРасходов_14[may],tblСтатьяРасходов_15[may])","v":5468},{"$f":"SUM(tblСтатьяРасходов_01[jun],tblСтатьяРасходов_02[jun],tblСтатьяРасходов_03[jun],tblСтатьяРасходов_04[jun],tblСтатьяРасходов_05[jun],tblСтатьяРасходов_06[jun],tblСтатьяРасходов_07[jun],tblСтатьяРасходов_08[jun],tblСтатьяРасходов_09[jun],tblСтатьяРасходов_10[jun],tblСтатьяРасходов_11[jun],tblСтатьяРасходов_12[jun],tblСтатьяРасходов_13[jun],tblСтатьяРасходов_14[jun],tblСтатьяРасходов_15[jun])","v":5118},{"$f":"SUM(tblСтатьяРасходов_01[jul],tblСтатьяРасходов_02[jul],tblСтатьяРасходов_03[jul],tblСтатьяРасходов_04[jul],tblСтатьяРасходов_05[jul],tblСтатьяРасходов_06[jul],tblСтатьяРасходов_07[jul],tblСтатьяРасходов_08[jul],tblСтатьяРасходов_09[jul],tblСтатьяРасходов_10[jul],tblСтатьяРасходов_11[jul],tblСтатьяРасходов_12[jul],tblСтатьяРасходов_13[jul],tblСтатьяРасходов_14[jul],tblСтатьяРасходов_15[jul])","v":5743},{"$f":"SUM(tblСтатьяРасходов_01[aug],tblСтатьяРасходов_02[aug],tblСтатьяРасходов_03[aug],tblСтатьяРасходов_04[aug],tblСтатьяРасходов_05[aug],tblСтатьяРасходов_06[aug],tblСтатьяРасходов_07[aug],tblСтатьяРасходов_08[aug],tblСтатьяРасходов_09[aug],tblСтатьяРасходов_10[aug],tblСтатьяРасходов_11[aug],tblСтатьяРасходов_12[aug],tblСтатьяРасходов_13[aug],tblСтатьяРасходов_14[aug],tblСтатьяРасходов_15[aug])","v":5353},{"$f":"SUM(tblСтатьяРасходов_01[sep],tblСтатьяРасходов_02[sep],tblСтатьяРасходов_03[sep],tblСтатьяРасходов_04[sep],tblСтатьяРасходов_05[sep],tblСтатьяРасходов_06[sep],tblСтатьяРасходов_07[sep],tblСтатьяРасходов_08[sep],tblСтатьяРасходов_09[sep],tblСтатьяРасходов_10[sep],tblСтатьяРасходов_11[sep],tblСтатьяРасходов_12[sep],tblСтатьяРасходов_13[sep],tblСтатьяРасходов_14[sep],tblСтатьяРасходов_15[sep])","v":5983},{"$f":"SUM(tblСтатьяРасходов_01[oct],tblСтатьяРасходов_02[oct],tblСтатьяРасходов_03[oct],tblСтатьяРасходов_04[oct],tblСтатьяРасходов_05[oct],tblСтатьяРасходов_06[oct],tblСтатьяРасходов_07[oct],tblСтатьяРасходов_08[oct],tblСтатьяРасходов_09[oct],tblСтатьяРасходов_10[oct],tblСтатьяРасходов_11[oct],tblСтатьяРасходов_12[oct],tblСтатьяРасходов_13[oct],tblСтатьяРасходов_14[oct],tblСтатьяРасходов_15[oct])","v":5943},{"$f":"SUM(tblСтатьяРасходов_01[nov],tblСтатьяРасходов_02[nov],tblСтатьяРасходов_03[nov],tblСтатьяРасходов_04[nov],tblСтатьяРасходов_05[nov],tblСтатьяРасходов_06[nov],tblСтатьяРасходов_07[nov],tblСтатьяРасходов_08[nov],tblСтатьяРасходов_09[nov],tblСтатьяРасходов_10[nov],tblСтатьяРасходов_11[nov],tblСтатьяРасходов_12[nov],tblСтатьяРасходов_13[nov],tblСтатьяРасходов_14[nov],tblСтатьяРасходов_15[nov])","v":5058},{"$f":"SUM(tblСтатьяРасходов_01[dec],tblСтатьяРасходов_02[dec],tblСтатьяРасходов_03[dec],tblСтатьяРасходов_04[dec],tblСтатьяРасходов_05[dec],tblСтатьяРасходов_06[dec],tblСтатьяРасходов_07[dec],tblСтатьяРасходов_08[dec],tblСтатьяРасходов_09[dec],tblСтатьяРасходов_10[dec],tblСтатьяРасходов_11[dec],tblСтатьяРасходов_12[dec],tblСтатьяРасходов_13[dec],tblСтатьяРасходов_14[dec],tblСтатьяРасходов_15[dec])","v":4958},{"$f":"SUM(tblСтатьяРасходов_01[year],tblСтатьяРасходов_02[year],tblСтатьяРасходов_03[year],tblСтатьяРасходов_04[year],tblСтатьяРасходов_05[year],tblСтатьяРасходов_06[year],tblСтатьяРасходов_07[year],tblСтатьяРасходов_08[year],tblСтатьяРасходов_09[year],tblСтатьяРасходов_10[year],tblСтатьяРасходов_11[year],tblСтатьяРасходов_12[year],tblСтатьяРасходов_13[year],tblСтатьяРасходов_14[year],tblСтатьяРасходов_15[year])","v":68594},{"$f":"O7/12","v":{"v":5716.166666666667,"d":"5716"}}]
[null,"Чистый доход",{"$f":"C6-C7","v":-3714},{"$f":"D6-D7","v":3790},-1933,-1813,3532,-3593,-4243,1147,-1983,-1943,3942,-958,-7769,{"$f":"O8/12","v":{"v":-647.4166666666666,"d":"-647"}}]
[null,"ОБЩЕЕ ДВИЖЕНИЕ СРЕДСТВ",{"$f":"C5+C6-C7","v":-2714},{"$f":"C9+D6-D7","v":1076},{"$f":"D9+E6-E7","v":-857},-2670,862,-2731,-6974,-5827,-7810,-9753,-5811,-6769]
[]
[]
[null,"Доходы"]
[null,"Заработная плата и чаевые",4000,4000,4000,4000,4000,1000,1000,1000,4000,4000,4000,4000,{"$f":"SUM(tblДоход[[#This Row],[jan]:[dec]])","v":39000},{"$f":"tblДоход[[#This Row],[year]]/12","v":3250}]
[null,"Доход от процентов",222,33,null,45,null,25,{"$nulls":6},{"$f":"SUM(tblДоход[[#This Row],[jan]:[dec]])","v":325},{"$f":"tblДоход[[#This Row],[year]]/12","v":{"v":27.083333333333332,"d":"27"}}]
[null,"Дивиденды",null,5000,null,null,5000,null,null,5000,null,null,5000,null,{"$f":"SUM(tblДоход[[#This Row],[jan]:[dec]])","v":20000},{"$f":"tblДоход[[#This Row],[year]]/12","v":{"v":1666.6666666666667,"d":"1667"}}]
[null,"Возмещения и компенсации",{"$nulls":5},500,500,500,{"$nulls":4},{"$f":"SUM(tblДоход[[#This Row],[jan]:[dec]])","v":1500},{"$f":"tblДоход[[#This Row],[year]]/12","v":125}]
[null,"Прочее",{"$nulls":12},{"$f":"SUM(tblДоход[[#This Row],[jan]:[dec]])","v":0},{"$f":"tblДоход[[#This Row],[year]]/12","v":0}]
[null,"ОБЩИЕ ДОХОДЫ",{"$f":"SUM(tblДоход[jan])","v":4222},{"$f":"SUM(tblДоход[feb])","v":9033},{"$f":"SUM(tblДоход[mar])","v":4000},{"$f":"SUM(tblДоход[apr])","v":4045},{"$f":"SUM(tblДоход[may])","v":9000},{"$f":"SUM(tblДоход[jun])","v":1525},{"$f":"SUM(tblДоход[jul])","v":1500},{"$f":"SUM(tblДоход[aug])","v":6500},{"$f":"SUM(tblДоход[sep])","v":4000},{"$f":"SUM(tblДоход[oct])","v":4000},{"$f":"SUM(tblДоход[nov])","v":9000},{"$f":"SUM(tblДоход[dec])","v":4000},{"$f":"SUM(tblДоход[year])","v":60825},{"$f":"tblДоход[[#Totals],[year]]/12","v":{"v":5068.75,"d":"5069"}}]
[]
[]
[null,"Жилье"]
[null,"Ипотека или аренда",850,850,850,850,850,850,850,850,850,850,900,900,{"$f":"SUM(tblСтатьяРасходов_01[[#This Row],[jan]:[dec]])","v":10300},{"$f":"tblСтатьяРасходов_01[[#This Row],[year]]/12","v":{"v":858.3333333333334,"d":"858"}}]
[null,"Электроэнергия",200,200,175,150,150,175,225,275,200,150,150,150,{"$f":"SUM(tblСтатьяРасходов_01[[#This Row],[jan]:[dec]])","v":2200},{"$f":"tblСтатьяРасходов_01[[#This Row],[year]]/12","v":{"v":183.33333333333334,"d":"183"}}]
[null,"Телефон",50,50,100,100,50,50,100,100,50,50,50,50,{"$f":"SUM(tblСтатьяРасходов_01[[#This Row],[jan]:[dec]])","v":800},{"$f":"tblСтатьяРасходов_01[[#This Row],[year]]/12","v":{"v":66.66666666666667,"d":"67"}}]
[null,"Кабельное или спутниковое ТВ",69,69,69,69,69,69,69,69,69,69,69,69,{"$f":"SUM(tblСтатьяРасходов_01[[#This Row],[jan]:[dec]])","v":828},{"$f":"tblСтатьяРасходов_01[[#This Row],[year]]/12","v":69}]
[null,"Интернет",39,39,39,39,39,39,39,39,39,39,39,39,{"$f":"SUM(tblСтатьяРасходов_01[[#This Row],[jan]:[dec]])","v":468},{"$f":"tblСтатьяРасходов_01[[#This Row],[year]]/12","v":39}]
[null,{"$f":"UPPER(\"ВСЕГО: \" & B21)","v":"ВСЕГО: ЖИЛЬЕ"},{"$f":"SUM(tblСтатьяРасходов_01[jan])","v":1208},{"$f":"SUM(tblСтатьяРасходов_01[feb])","v":1208},{"$f":"SUM(tblСтатьяРасходов_01[mar])","v":1233},{"$f":"SUM(tblСтатьяРасходов_01[apr])","v":1208},{"$f":"SUM(tblСтатьяРасходов_01[may])","v":1158},{"$f":"SUM(tblСтатьяРасходов_01[jun])","v":1183},{"$f":"SUM(tblСтатьяРасходов_01[jul])","v":1283},{"$f":"SUM(tblСтатьяРасходов_01[aug])","v":1333},{"$f":"SUM(tblСтатьяРасходов_01[sep])","v":1208},{"$f":"SUM(tblСтатьяРасходов_01[oct])","v":1158},{"$f":"SUM(tblСтатьяРасходов_01[nov])","v":1208},{"$f":"SUM(tblСтатьяРасходов_01[dec])","v":1208},{"$f":"SUM(tblСтатьяРасходов_01[year])","v":14596},{"$f":"tblСтатьяРасходов_01[[#Totals],[year]]/12","v":{"v":1216.3333333333333,"d":"1216"}}]
[]
[]
[null,"Бытовые нужды"]
[null,"Продукты",345,250,200,400,350,250,400,350,250,400,350,250,{"$f":"SUM(tblСтатьяРасходов_02[[#This Row],[jan]:[dec]])","v":3795},{"$f":"tblСтатьяРасходов_02[[#This Row],[year]]/12","v":{"v":316.25,"d":"316"}}]
[null,"Одежда",300,null,null,300,null,null,300,null,null,300,null,null,{"$f":"SUM(tblСтатьяРасходов_02[[#This Row],[jan]:[dec]])","v":1200},{"$f":"tblСтатьяРасходов_02[[#This Row],[year]]/12","v":100}]
[null,"Питание вне дома",125,125,300,125,125,200,125,125,125,125,125,125,{"$f":"SUM(tblСтатьяРасходов_02[[#This Row],[jan]:[dec]])","v":1750},{"$f":"tblСтатьяРасходов_02[[#This Row],[year]]/12","v":{"v":145.83333333333334,"d":"146"}}]
[null,"Салон красоты или парикмахерская",25,null,50,null,25,null,50,null,25,null,100,null,{"$f":"SUM(tblСтатьяРасходов_02[[#This Row],[jan]:[dec]])","v":275},{"$f":"tblСтатьяРасходов_02[[#This Row],[year]]/12","v":{"v":22.916666666666668,"d":"23"}}]
[null,"Прочее",{"$nulls":12},{"$f":"SUM(tblСтатьяРасходов_02[[#This Row],[jan]:[dec]])","v":0},{"$f":"tblСтатьяРасходов_02[[#This Row],[year]]/12","v":0}]
[null,{"$f":"UPPER(\"ВСЕГО: \" & B30)","v":"ВСЕГО: БЫТОВЫЕ НУЖДЫ"},{"$f":"SUM(tblСтатьяРасходов_02[jan])","v":795},{"$f":"SUM(tblСтатьяРасходов_02[feb])","v":375},{"$f":"SUM(tblСтатьяРасходов_02[mar])","v":550},{"$f":"SUM(tblСтатьяРасходов_02[apr])","v":825},{"$f":"SUM(tblСтатьяРасходов_02[may])","v":500},{"$f":"SUM(tblСтатьяРасходов_02[jun])","v":450},{"$f":"SUM(tblСтатьяРасходов_02[jul])","v":875},{"$f":"SUM(tblСтатьяРасходов_02[aug])","v":475},{"$f":"SUM(tblСтатьяРасходов_02[sep])","v":400},{"$f":"SUM(tblСтатьяРасходов_02[oct])","v":825},{"$f":"SUM(tblСтатьяРасходов_02[nov])","v":575},{"$f":"SUM(tblСтатьяРасходов_02[dec])","v":375},{"$f":"SUM(tblСтатьяРасходов_02[year])","v":7020},{"$f":"tblСтатьяРасходов_02[[#Totals],[year]]/12","v":585}]
[]
[]
[null,"Дети"]
[null,"Школьные принадлежности",123,null,100,{"$nulls":4},345,{"$nulls":4},{"$f":"SUM(tblСтатьяРасходов_03[[#This Row],[jan]:[dec]])","v":568},{"$f":"tblСтатьяРасходов_03[[#This Row],[year]]/12","v":{"v":47.333333333333336,"d":"47"}}]
[null,"Одежда",null,100,null,null,100,{"$nulls":3},100,null,null,100,{"$f":"SUM(tblСтатьяРасходов_03[[#This Row],[jan]:[dec]])","v":400},{"$f":"tblСтатьяРасходов_03[[#This Row],[year]]/12","v":{"v":33.333333333333336,"d":"33"}}]
[null,"Обед в школе",50,50,50,50,50,50,null,null,50,50,50,50,{"$f":"SUM(tblСтатьяРасходов_03[[#This Row],[jan]:[dec]])","v":500},{"$f":"tblСтатьяРасходов_03[[#This Row],[year]]/12","v":{"v":41.666666666666664,"d":"42"}}]
[null,"Медицинские услуги",200,200,200,200,200,200,200,200,200,200,200,200,{"$f":"SUM(tblСтатьяРасходов_03[[#This Row],[jan]:[dec]])","v":2400},{"$f":"tblСтатьяРасходов_03[[#This Row],[year]]/12","v":200}]
[null,"Прочее",2000,150,{"$nulls":3},200,{"$nulls":3},100,null,null,{"$f":"SUM(tblСтатьяРасходов_03[[#This Row],[jan]:[dec]])","v":2450},{"$f":"tblСтатьяРасходов_03[[#This Row],[year]]/12","v":{"v":204.16666666666666,"d":"204"}}]
[null,{"$f":"UPPER(\"ВСЕГО: \" & B39)","v":"ВСЕГО: ДЕТИ"},{"$f":"SUM(tblСтатьяРасходов_03[jan])","v":2373},{"$f":"SUM(tblСтатьяРасходов_03[feb])","v":500},{"$f":"SUM(tblСтатьяРасходов_03[mar])","v":350},{"$f":"SUM(tblСтатьяРасходов_03[apr])","v":250},{"$f":"SUM(tblСтатьяРасходов_03[may])","v":350},{"$f":"SUM(tblСтатьяРасходов_03[jun])","v":450},{"$f":"SUM(tblСтатьяРасходов_03[jul])","v":200},{"$f":"SUM(tblСтатьяРасходов_03[aug])","v":545},{"$f":"SUM(tblСтатьяРасходов_03[sep])","v":350},{"$f":"SUM(tblСтатьяРасходов_03[oct])","v":350},{"$f":"SUM(tblСтатьяРасходов_03[nov])","v":250},{"$f":"SUM(tblСтатьяРасходов_03[dec])","v":350},{"$f":"SUM(tblСтатьяРасходов_03[year])","v":6318},{"$f":"tblСтатьяРасходов_03[[#Totals],[year]]/12","v":{"v":526.5,"d":"527"}}]
[]
[]
[null,"Транспорт"]
[null,"Расходы на автомобиль",600,600,600,600,600,600,600,600,600,600,600,600,{"$f":"SUM(tblСтатьяРасходов_04[[#This Row],[jan]:[dec]])","v":7200},{"$f":"tblСтатьяРасходов_04[[#This Row],[year]]/12","v":600}]
[null,"Топливо",325,325,325,325,325,500,500,500,325,325,325,325,{"$f":"SUM(tblСтатьяРасходов_04[[#This Row],[jan]:[dec]])","v":4425},{"$f":"tblСтатьяРасходов_04[[#This Row],[year]]/12","v":{"v":368.75,"d":"369"}}]
[null,"Ремонт",null,100,null,100,null,100,null,100,null,100,null,null,{"$f":"SUM(tblСтатьяРасходов_04[[#This Row],[jan]:[dec]])","v":500},{"$f":"tblСтатьяРасходов_04[[#This Row],[year]]/12","v":{"v":41.666666666666664,"d":"42"}}]
[null,"Регистрация и удостоверение",185,{"$nulls":7},225,{"$nulls":3},{"$f":"SUM(tblСтатьяРасходов_04[[#This Row],[jan]:[dec]])","v":410},{"$f":"tblСтатьяРасходов_04[[#This Row],[year]]/12","v":{"v":34.166666666666664,"d":"34"}}]
[null,"Прочее",{"$nulls":4},400,{"$nulls":7},{"$f":"SUM(tblСтатьяРасходов_04[[#This Row],[jan]:[dec]])","v":400},{"$f":"tblСтатьяРасходов_04[[#This Row],[year]]/12","v":{"v":33.333333333333336,"d":"33"}}]
[null,{"$f":"UPPER(\"ВСЕГО: \" & B48)","v":"ВСЕГО: ТРАНСПОРТ"},{"$f":"SUM(tblСтатьяРасходов_04[jan])","v":1110},{"$f":"SUM(tblСтатьяРасходов_04[feb])","v":1025},{"$f":"SUM(tblСтатьяРасходов_04[mar])","v":925},{"$f":"SUM(tblСтатьяРасходов_04[apr])","v":1025},{"$f":"SUM(tblСтатьяРасходов_04[may])","v":1325},{"$f":"SUM(tblСтатьяРасходов_04[jun])","v":1200},{"$f":"SUM(tblСтатьяРасходов_04[jul])","v":1100},{"$f":"SUM(tblСтатьяРасходов_04[aug])","v":1200},{"$f":"SUM(tblСтатьяРасходов_04[sep])","v":1150},{"$f":"SUM(tblСтатьяРасходов_04[oct])","v":1025},{"$f":"SUM(tblСтатьяРасходов_04[nov])","v":925},{"$f":"SUM(tblСтатьяРасходов_04[dec])","v":925},{"$f":"SUM(tblСтатьяРасходов_04[year])","v":12935},{"$f":"tblСтатьяРасходов_04[[#Totals],[year]]/12","v":{"v":1077.9166666666667,"d":"1078"}}]
[]
[]
[null,"Здоровье"]
[null,"Стоматолог и другие врачи",null,35,null,null,35,35,35,null,null,35,null,null,{"$f":"SUM(tblСтатьяРасходов_05[[#This Row],[jan]:[dec]])","v":175},{"$f":"tblСтатьяРасходов_05[[#This Row],[year]]/12","v":{"v":14.583333333333334,"d":"15"}}]
[null,"Лекарства",25,25,25,25,25,25,25,25,25,25,25,25,{"$f":"SUM(tblСтатьяРасходов_05[[#This Row],[jan]:[dec]])","v":300},{"$f":"tblСтатьяРасходов_05[[#This Row],[year]]/12","v":25}]
[null,"Прочее",null,null,150,{"$nulls":5},150,{"$nulls":3},{"$f":"SUM(tblСтатьяРасходов_05[[#This Row],[jan]:[dec]])","v":300},{"$f":"tblСтатьяРасходов_05[[#This Row],[year]]/12","v":25}]
[null,{"$f":"UPPER(\"ВСЕГО: \" & B57)","v":"ВСЕГО: ЗДОРОВЬЕ"},{"$f":"SUM(tblСтатьяРасходов_05[jan])","v":25},{"$f":"SUM(tblСтатьяРасходов_05[feb])","v":60},{"$f":"SUM(tblСтатьяРасходов_05[mar])","v":175},{"$f":"SUM(tblСтатьяРасходов_05[apr])","v":25},{"$f":"SUM(tblСтатьяРасходов_05[may])","v":60},{"$f":"SUM(tblСтатьяРасходов_05[jun])","v":60},{"$f":"SUM(tblСтатьяРасходов_05[jul])","v":60},{"$f":"SUM(tblСтатьяРасходов_05[aug])","v":25},{"$f":"SUM(tblСтатьяРасходов_05[sep])","v":175},{"$f":"SUM(tblСтатьяРасходов_05[oct])","v":60},{"$f":"SUM(tblСтатьяРасходов_05[nov])","v":25},{"$f":"SUM(tblСтатьяРасходов_05[dec])","v":25},{"$f":"SUM(tblСтатьяРасходов_05[year])","v":775},{"$f":"tblСтатьяРасходов_05[[#Totals],[year]]/12","v":{"v":64.58333333333333,"d":"65"}}]
[]
[]
[null,"Страховка"]
[null,"Автомобиль",150,150,150,150,150,150,150,150,150,150,150,150,{"$f":"SUM(tblСтатьяРасходов_06[[#This Row],[jan]:[dec]])","v":1800},{"$f":"tblСтатьяРасходов_06[[#This Row],[year]]/12","v":150}]
[null,"Здоровье",675,675,675,675,675,675,675,675,675,675,675,675,{"$f":"SUM(tblСтатьяРасходов_06[[#This Row],[jan]:[dec]])","v":8100},{"$f":"tblСтатьяРасходов_06[[#This Row],[year]]/12","v":675}]
[null,"Жизнь",150,150,150,150,150,150,150,150,150,150,150,150,{"$f":"SUM(tblСтатьяРасходов_06[[#This Row],[jan]:[dec]])","v":1800},{"$f":"tblСтатьяРасходов_06[[#This Row],[year]]/12","v":150}]
[null,{"$f":"UPPER(\"ВСЕГО: \" & B64)","v":"ВСЕГО: СТРАХОВКА"},{"$f":"SUM(tblСтатьяРасходов_06[jan])","v":975},{"$f":"SUM(tblСтатьяРасходов_06[feb])","v":975},{"$f":"SUM(tblСтатьяРасходов_06[mar])","v":975},{"$f":"SUM(tblСтатьяРасходов_06[apr])","v":975},{"$f":"SUM(tblСтатьяРасходов_06[may])","v":975},{"$f":"SUM(tblСтатьяРасходов_06[jun])","v":975},{"$f":"SUM(tblСтатьяРасходов_06[jul])","v":975},{"$f":"SUM(tblСтатьяРасходов_06[aug])","v":975},{"$f":"SUM(tblСтатьяРасходов_06[sep])","v":975},{"$f":"SUM(tblСтатьяРасходов_06[oct])","v":975},{"$f":"SUM(tblСтатьяРасходов_06[nov])","v":975},{"$f":"SUM(tblСтатьяРасходов_06[dec])","v":975},{"$f":"SUM(tblСтатьяРасходов_06[year])","v":11700},{"$f":"tblСтатьяРасходов_06[[#Totals],[year]]/12","v":975}]
[]
[]
[null,"Образование"]
[null,"Обучение",null,null,400,{"$nulls":5},400,{"$nulls":3},{"$f":"SUM(tblСтатьяРасходов_07[[#This Row],[jan]:[dec]])","v":800},{"$f":"tblСтатьяРасходов_07[[#This Row],[year]]/12","v":{"v":66.66666666666667,"d":"67"}}]
[null,"Книги",null,null,225,{"$nulls":5},225,{"$nulls":3},{"$f":"SUM(tblСтатьяРасходов_07[[#This Row],[jan]:[dec]])","v":450},{"$f":"tblСтатьяРасходов_07[[#This Row],[year]]/12","v":{"v":37.5,"d":"38"}}]
[null,"Прочее",{"$nulls":12},{"$f":"SUM(tblСтатьяРасходов_07[[#This Row],[jan]:[dec]])","v":0},{"$f":"tblСтатьяРасходов_07[[#This Row],[year]]/12","v":0}]
[null,{"$f":"UPPER(\"ВСЕГО: \" & B71)","v":"ВСЕГО: ОБРАЗОВАНИЕ"},{"$f":"SUM(tblСтатьяРасходов_07[jan])","v":0},{"$f":"SUM(tblСтатьяРасходов_07[feb])","v":0},{"$f":"SUM(tblСтатьяРасходов_07[mar])","v":625},{"$f":"SUM(tblСтатьяРасходов_07[apr])","v":0},{"$f":"SUM(tblСтатьяРасходов_07[may])","v":0},{"$f":"SUM(tblСтатьяРасходов_07[jun])","v":0},{"$f":"SUM(tblСтатьяРасходов_07[jul])","v":0},{"$f":"SUM(tblСтатьяРасходов_07[aug])","v":0},{"$f":"SUM(tblСтатьяРасходов_07[sep])","v":625},{"$f":"SUM(tblСтатьяРасходов_07[oct])","v":0},{"$f":"SUM(tblСтатьяРасходов_07[nov])","v":0},{"$f":"SUM(tblСтатьяРасходов_07[dec])","v":0},{"$f":"SUM(tblСтатьяРасходов_07[year])","v":1250},{"$f":"tblСтатьяРасходов_07[[#Totals],[year]]/12","v":{"v":104.16666666666667,"d":"104"}}]
[]
[]
[null,"Благотворительность"]
[null,"Покупка подарков",null,100,{"$nulls":3},100,{"$nulls":3},100,null,null,{"$f":"SUM(tblСтатьяРасходов_08[[#This Row],[jan]:[dec]])","v":300},{"$f":"tblСтатьяРасходов_08[[#This Row],[year]]/12","v":25}]
[null,"Пожертвования на благотворительность",null,null,100,null,100,null,100,null,100,null,100,null,{"$f":"SUM(tblСтатьяРасходов_08[[#This Row],[jan]:[dec]])","v":500},{"$f":"tblСтатьяРасходов_08[[#This Row],[year]]/12","v":{"v":41.666666666666664,"d":"42"}}]
[null,"Прочее",{"$nulls":3},100,{"$nulls":3},100,{"$nulls":3},100,{"$f":"SUM(tblСтатьяРасходов_08[[#This Row],[jan]:[dec]])","v":300},{"$f":"tblСтатьяРасходов_08[[#This Row],[year]]/12","v":25}]
[null,{"$f":"UPPER(\"ВСЕГО: \" & B78)","v":"ВСЕГО: БЛАГОТВОРИТЕЛЬНОСТЬ"},{"$f":"SUM(tblСтатьяРасходов_08[jan])","v":0},{"$f":"SUM(tblСтатьяРасходов_08[feb])","v":100},{"$f":"SUM(tblСтатьяРасходов_08[mar])","v":100},{"$f":"SUM(tblСтатьяРасходов_08[apr])","v":100},{"$f":"SUM(tblСтатьяРасходов_08[may])","v":100},{"$f":"SUM(tblСтатьяРасходов_08[jun])","v":100},{"$f":"SUM(tblСтатьяРасходов_08[jul])","v":100},{"$f":"SUM(tblСтатьяРасходов_08[aug])","v":100},{"$f":"SUM(tblСтатьяРасходов_08[sep])","v":100},{"$f":"SUM(tblСтатьяРасходов_08[oct])","v":100},{"$f":"SUM(tblСтатьяРасходов_08[nov])","v":100},{"$f":"SUM(tblСтатьяРасходов_08[dec])","v":100},{"$f":"SUM(tblСтатьяРасходов_08[year])","v":1100},{"$f":"tblСтатьяРасходов_08[[#Totals],[year]]/12","v":{"v":91.66666666666667,"d":"92"}}]
[]
[]
[null,"Сбережения"]
[null,"Чрезвычайный фонд",100,100,100,100,100,{"$nulls":3},100,100,100,100,{"$f":"SUM(tblСтатьяРасходов_09[[#This Row],[jan]:[dec]])","v":900},{"$f":"tblСтатьяРасходов_09[[#This Row],[year]]/12","v":75}]
[null,"Пенсионные фонды (государственные и частные)",500,500,500,500,500,500,500,500,500,500,500,500,{"$f":"SUM(tblСтатьяРасходов_09[[#This Row],[jan]:[dec]])","v":6000},{"$f":"tblСтатьяРасходов_09[[#This Row],[year]]/12","v":500}]
[null,"Перевод в сбережения",200,200,200,200,200,{"$nulls":3},200,200,200,200,{"$f":"SUM(tblСтатьяРасходов_09[[#This Row],[jan]:[dec]])","v":1800},{"$f":"tblСтатьяРасходов_09[[#This Row],[year]]/12","v":150}]
[null,{"$f":"UPPER(\"ВСЕГО: \" & B85)","v":"ВСЕГО: СБЕРЕЖЕНИЯ"},{"$f":"SUM(tblСтатьяРасходов_09[jan])","v":800},{"$f":"SUM(tblСтатьяРасходов_09[feb])","v":800},{"$f":"SUM(tblСтатьяРасходов_09[mar])","v":800},{"$f":"SUM(tblСтатьяРасходов_09[apr])","v":800},{"$f":"SUM(tblСтатьяРасходов_09[may])","v":800},{"$f":"SUM(tblСтатьяРасходов_09[jun])","v":500},{"$f":"SUM(tblСтатьяРасходов_09[jul])","v":500},{"$f":"SUM(tblСтатьяРасходов_09[aug])","v":500},{"$f":"SUM(tblСтатьяРасходов_09[sep])","v":800},{"$f":"SUM(tblСтатьяРасходов_09[oct])","v":800},{"$f":"SUM(tblСтатьяРасходов_09[nov])","v":800},{"$f":"SUM(tblСтатьяРасходов_09[dec])","v":800},{"$f":"SUM(tblСтатьяРасходов_09[year])","v":8700},{"$f":"tblСтатьяРасходов_09[[#Totals],[year]]/12","v":725}]
[]
[]
[null,"Выплаты"]
[null,"Кредитная карта 1",145,145,145,145,145,145,145,145,145,145,145,145,{"$f":"SUM(tblСтатьяРасходов_10[[#This Row],[jan]:[dec]])","v":1740},{"$f":"tblСтатьяРасходов_10[[#This Row],[year]]/12","v":145}]
[null,"Федеральные налоги",450,null,null,450,null,null,450,null,null,450,null,null,{"$f":"SUM(tblСтатьяРасходов_10[[#This Row],[jan]:[dec]])","v":1800},{"$f":"tblСтатьяРасходов_10[[#This Row],[year]]/12","v":150}]
[null,"Студенческий заем",55,55,55,55,55,55,55,55,55,55,55,55,{"$f":"SUM(tblСтатьяРасходов_10[[#This Row],[jan]:[dec]])","v":660},{"$f":"tblСтатьяРасходов_10[[#This Row],[year]]/12","v":55}]
[null,{"$f":"UPPER(\"ВСЕГО: \" & B92)","v":"ВСЕГО: ВЫПЛАТЫ"},{"$f":"SUM(tblСтатьяРасходов_10[jan])","v":650},{"$f":"SUM(tblСтатьяРасходов_10[feb])","v":200},{"$f":"SUM(tblСтатьяРасходов_10[mar])","v":200},{"$f":"SUM(tblСтатьяРасходов_10[apr])","v":650},{"$f":"SUM(tblСтатьяРасходов_10[may])","v":200},{"$f":"SUM(tblСтатьяРасходов_10[jun])","v":200},{"$f":"SUM(tblСтатьяРасходов_10[jul])","v":650},{"$f":"SUM(tblСтатьяРасходов_10[aug])","v":200},{"$f":"SUM(tblСтатьяРасходов_10[sep])","v":200},{"$f":"SUM(tblСтатьяРасходов_10[oct])","v":650},{"$f":"SUM(tblСтатьяРасходов_10[nov])","v":200},{"$f":"SUM(tblСтатьяРасходов_10[dec])","v":200},{"$f":"SUM(tblСтатьяРасходов_10[year])","v":4200},{"$f":"tblСтатьяРасходов_10[[#Totals],[year]]/12","v":350}]
[]
[]
[null," "]
[{"$nulls":14},{"$f":"SUM(tblСтатьяРасходов_11[[#This Row],[jan]:[dec]])","v":0},{"$f":"tblСтатьяРасходов_11[[#This Row],[year]]/12","v":0}]
[{"$nulls":14},{"$f":"SUM(tblСтатьяРасходов_11[[#This Row],[jan]:[dec]])","v":0},{"$f":"tblСтатьяРасходов_11[[#This Row],[year]]/12","v":0}]
[{"$nulls":14},{"$f":"SUM(tblСтатьяРасходов_11[[#This Row],[jan]:[dec]])","v":0},{"$f":"tblСтатьяРасходов_11[[#This Row],[year]]/12","v":0}]
[null,{"$f":"UPPER(\"ИТОГО \" & B99)","v":"ИТОГО  "},{"$f":"SUM(tblСтатьяРасходов_11[jan])","v":0},{"$f":"SUM(tblСтатьяРасходов_11[feb])","v":0},{"$f":"SUM(tblСтатьяРасходов_11[mar])","v":0},{"$f":"SUM(tblСтатьяРасходов_11[apr])","v":0},{"$f":"SUM(tblСтатьяРасходов_11[may])","v":0},{"$f":"SUM(tblСтатьяРасходов_11[jun])","v":0},{"$f":"SUM(tblСтатьяРасходов_11[jul])","v":0},{"$f":"SUM(tblСтатьяРасходов_11[aug])","v":0},{"$f":"SUM(tblСтатьяРасходов_11[sep])","v":0},{"$f":"SUM(tblСтатьяРасходов_11[oct])","v":0},{"$f":"SUM(tblСтатьяРасходов_11[nov])","v":0},{"$f":"SUM(tblСтатьяРасходов_11[dec])","v":0},{"$f":"SUM(tblСтатьяРасходов_11[year])","v":0},{"$f":"tblСтатьяРасходов_11[[#Totals],[year]]/12","v":0}]
[]
[]
[null," "]
[{"$nulls":14},{"$f":"SUM(tblСтатьяРасходов_12[[#This Row],[jan]:[dec]])","v":0},{"$f":"tblСтатьяРасходов_12[[#This Row],[year]]/12","v":0}]
[{"$nulls":14},{"$f":"SUM(tblСтатьяРасходов_12[[#This Row],[jan]:[dec]])","v":0},{"$f":"tblСтатьяРасходов_12[[#This Row],[year]]/12","v":0}]
[{"$nulls":14},{"$f":"SUM(tblСтатьяРасходов_12[[#This Row],[jan]:[dec]])","v":0},{"$f":"tblСтатьяРасходов_12[[#This Row],[year]]/12","v":0}]
[null,{"$f":"UPPER(\"ИТОГО \" & B106)","v":"ИТОГО  "},{"$f":"SUM(tblСтатьяРасходов_12[jan])","v":0},{"$f":"SUM(tblСтатьяРасходов_12[feb])","v":0},{"$f":"SUM(tblСтатьяРасходов_12[mar])","v":0},{"$f":"SUM(tblСтатьяРасходов_12[apr])","v":0},{"$f":"SUM(tblСтатьяРасходов_12[may])","v":0},{"$f":"SUM(tblСтатьяРасходов_12[jun])","v":0},{"$f":"SUM(tblСтатьяРасходов_12[jul])","v":0},{"$f":"SUM(tblСтатьяРасходов_12[aug])","v":0},{"$f":"SUM(tblСтатьяРасходов_12[sep])","v":0},{"$f":"SUM(tblСтатьяРасходов_12[oct])","v":0},{"$f":"SUM(tblСтатьяРасходов_12[nov])","v":0},{"$f":"SUM(tblСтатьяРасходов_12[dec])","v":0},{"$f":"SUM(tblСтатьяРасходов_12[year])","v":0},{"$f":"tblСтатьяРасходов_12[[#Totals],[year]]/12","v":0}]
[]
[]
[null," "]
[{"$nulls":14},{"$f":"SUM(tblСтатьяРасходов_13[[#This Row],[jan]:[dec]])","v":0},{"$f":"tblСтатьяРасходов_13[[#This Row],[year]]/12","v":0}]
[{"$nulls":14},{"$f":"SUM(tblСтатьяРасходов_13[[#This Row],[jan]:[dec]])","v":0},{"$f":"tblСтатьяРасходов_13[[#This Row],[year]]/12","v":0}]
[{"$nulls":14},{"$f":"SUM(tblСтатьяРасходов_13[[#This Row],[jan]:[dec]])","v":0},{"$f":"tblСтатьяРасходов_13[[#This Row],[year]]/12","v":0}]
[null,{"$f":"UPPER(\"ИТОГО \" & B113)","v":"ИТОГО  "},{"$f":"SUM(tblСтатьяРасходов_13[jan])","v":0},{"$f":"SUM(tblСтатьяРасходов_13[feb])","v":0},{"$f":"SUM(tblСтатьяРасходов_13[mar])","v":0},{"$f":"SUM(tblСтатьяРасходов_13[apr])","v":0},{"$f":"SUM(tblСтатьяРасходов_13[may])","v":0},{"$f":"SUM(tblСтатьяРасходов_13[jun])","v":0},{"$f":"SUM(tblСтатьяРасходов_13[jul])","v":0},{"$f":"SUM(tblСтатьяРасходов_13[aug])","v":0},{"$f":"SUM(tblСтатьяРасходов_13[sep])","v":0},{"$f":"SUM(tblСтатьяРасходов_13[oct])","v":0},{"$f":"SUM(tblСтатьяРасходов_13[nov])","v":0},{"$f":"SUM(tblСтатьяРасходов_13[dec])","v":0},{"$f":"SUM(tblСтатьяРасходов_13[year])","v":0},{"$f":"tblСтатьяРасходов_13[[#Totals],[year]]/12","v":0}]
[]
[]
[null," "]
[{"$nulls":14},{"$f":"SUM(tblСтатьяРасходов_14[[#This Row],[jan]:[dec]])","v":0},{"$f":"tblСтатьяРасходов_14[[#This Row],[year]]/12","v":0}]
[{"$nulls":14},{"$f":"SUM(tblСтатьяРасходов_14[[#This Row],[jan]:[dec]])","v":0},{"$f":"tblСтатьяРасходов_14[[#This Row],[year]]/12","v":0}]
[{"$nulls":14},{"$f":"SUM(tblСтатьяРасходов_14[[#This Row],[jan]:[dec]])","v":0},{"$f":"tblСтатьяРасходов_14[[#This Row],[year]]/12","v":0}]
[null,{"$f":"UPPER(\"ИТОГО \" & B120)","v":"ИТОГО  "},{"$f":"SUM(tblСтатьяРасходов_14[jan])","v":0},{"$f":"SUM(tblСтатьяРасходов_14[feb])","v":0},{"$f":"SUM(tblСтатьяРасходов_14[mar])","v":0},{"$f":"SUM(tblСтатьяРасходов_14[apr])","v":0},{"$f":"SUM(tblСтатьяРасходов_14[may])","v":0},{"$f":"SUM(tblСтатьяРасходов_14[jun])","v":0},{"$f":"SUM(tblСтатьяРасходов_14[jul])","v":0},{"$f":"SUM(tblСтатьяРасходов_14[aug])","v":0},{"$f":"SUM(tblСтатьяРасходов_14[sep])","v":0},{"$f":"SUM(tblСтатьяРасходов_14[oct])","v":0},{"$f":"SUM(tblСтатьяРасходов_14[nov])","v":0},{"$f":"SUM(tblСтатьяРасходов_14[dec])","v":0},{"$f":"SUM(tblСтатьяРасходов_14[year])","v":0},{"$f":"tblСтатьяРасходов_14[[#Totals],[year]]/12","v":0}]
[]
[]
[null," "]
[{"$nulls":14},{"$f":"SUM(tblСтатьяРасходов_15[[#This Row],[jan]:[dec]])","v":0},{"$f":"tblСтатьяРасходов_15[[#This Row],[year]]/12","v":0}]
[{"$nulls":14},{"$f":"SUM(tblСтатьяРасходов_15[[#This Row],[jan]:[dec]])","v":0},{"$f":"tblСтатьяРасходов_15[[#This Row],[year]]/12","v":0}]
[{"$nulls":14},{"$f":"SUM(tblСтатьяРасходов_15[[#This Row],[jan]:[dec]])","v":0},{"$f":"tblСтатьяРасходов_15[[#This Row],[year]]/12","v":0}]
[null,{"$f":"UPPER(\"ИТОГО\" & B127)","v":"ИТОГО "},{"$f":"SUM(tblСтатьяРасходов_15[jan])","v":0},{"$f":"SUM(tblСтатьяРасходов_15[feb])","v":0},{"$f":"SUM(tblСтатьяРасходов_15[mar])","v":0},{"$f":"SUM(tblСтатьяРасходов_15[apr])","v":0},{"$f":"SUM(tblСтатьяРасходов_15[may])","v":0},{"$f":"SUM(tblСтатьяРасходов_15[jun])","v":0},{"$f":"SUM(tblСтатьяРасходов_15[jul])","v":0},{"$f":"SUM(tblСтатьяРасходов_15[aug])","v":0},{"$f":"SUM(tblСтатьяРасходов_15[sep])","v":0},{"$f":"SUM(tblСтатьяРасходов_15[oct])","v":0},{"$f":"SUM(tblСтатьяРасходов_15[nov])","v":0},{"$f":"SUM(tblСтатьяРасходов_15[dec])","v":0},{"$f":"SUM(tblСтатьяРасходов_15[year])","v":0},{"$f":"tblСтатьяРасходов_15[[#Totals],[year]]/12","v":0}]

{"sheet":"Настройка","index":2,"n_rows":59,"n_cols":10,"rows_kept":59}
[null,"СЕМЬЯ ЕГОРОВЫХ, 2012 год"]
[null,"Доходы",null,"Расходы"]
[null,"Заработная плата и чаевые",null," "]
[null,"Доход от процентов",null,"Жилье",null,"Жилье",null,"Бытовые нужды",null,"Дети"]
[null,"Дивиденды",null,"Бытовые нужды",null,"Ипотека или аренда",null,"Продукты",null,"Медицинские услуги"]
[null,"Полученные подарки",null,"Дети",null,"Электроэнергия",null,"Средства личной гигиены",null,"Одежда"]
[null,"Возмещения и компенсации",null,"Транспорт",null,"Отопление",null,"Одежда",null,"Обучение в школе"]
[null,"Перевод из сбережений",null,"Здоровье",null,"Вода, канализация и вывоз мусора",null,"Услуги по уборке",null,"Обед в школе"]
[null,"Прочее",null,"Страховка",null,"Телефон",null,"Питание вне дома",null,"Школьные принадлежности"]
[{"$nulls":3},"Образование",null,"Кабельное или спутниковое ТВ",null,"Химчистка",null,"Няня"]
[{"$nulls":3},"Благотворительность",null,"Интернет",null,"Салон красоты или парикмахерская",null,"Игрушки и игры"]
[{"$nulls":3},"Сбережения",null,"Мебель и бытовая техника",null,"Прочее",null,"Прочее"]
[{"$nulls":3},"Выплаты",null,"Газон или сад"]
[{"$nulls":3},"Развлечения",null,"Товары для дома"]
[{"$nulls":3},"Домашние животные",null,"Содержание жилья"]
[{"$nulls":3},"Подписки",null,"Ремонт дома"]
[{"$nulls":3},"Отдых",null,"Прочее"]
[{"$nulls":3},"Разное"]
[]
[{"$nulls":5},"Транспорт",null,"Здоровье",null,"Страховка"]
[{"$nulls":5},"Расходы на автомобиль",null,"Стоматолог и другие врачи",null,"Автомобиль"]
[{"$nulls":5},"Топливо",null,"Лекарства",null,"Здоровье"]
[{"$nulls":5},"Общественный транспорт",null,"Абонементы в спортзалы",null,"Жилье (собственное или арендуемое)"]
[{"$nulls":5},"Ремонт",null,"Экстренная медицинская помощь",null,"Жизнь"]
[{"$nulls":5},"Регистрация и удостоверение",null,"Прочее",null,"Прочее"]
[{"$nulls":5},"Прочее"]
[]
[]
[{"$nulls":5},"Образование",null,"Благотворительность",null,"Сбережения"]
[{"$nulls":5},"Обучение",null,"Покупка подарков",null,"Чрезвычайный фонд"]
[{"$nulls":5},"Книги",null,"Пожертвования на благотворительность",null,"Перевод в сбережения"]
[{"$nulls":5},"Музыкальная школа",null,"Пожертвования храмам",null,"Пенсионные фонды (государственные и частные)"]
[{"$nulls":5},"Прочее",null,"Прочее",null,"Инвестиции"]
[{"$nulls":9},"Высшее образование"]
[{"$nulls":9},"Прочее"]
[]
[]
[{"$nulls":5},"Выплаты",null,"Развлечения",null,"Домашние животные"]
[{"$nulls":5},"Студенческий заем",null,"Видео и DVD-диски",null,"Питание"]
[{"$nulls":5},"Прочие займы",null,"Музыка",null,"Медицинские услуги"]
[{"$nulls":5},"Кредитная карта 1",null,"Игры",null,"Игрушки и сопутствующие товары"]
[{"$nulls":5},"Кредитная карта 2",null,"Прокат",null,"Прочее"]
[{"$nulls":5},"Кредитная карта 3",null,"Кино и театр"]
[{"$nulls":5},"Алименты и детские пособия",null,"Концерты и матчи"]
[{"$nulls":5},"Федеральные налоги",null,"Книги"]
[{"$nulls":5},"Налог на имущество",null,"Хобби"]
[{"$nulls":5},"Местные налоги",null,"Фильмы и фотографии"]
[{"$nulls":5},"Арендная плата",null,"Спорт"]
[{"$nulls":5},"Гонорар адвоката",null,"Отдых на природе"]
[{"$nulls":5},"Прочее",null,"Игрушки и гаджеты"]
[{"$nulls":7},"Прочее"]
[]
[{"$nulls":5},"Подписки",null,"Отдых",null,"Разное"]
[{"$nulls":5},"Газеты",null,"Билеты",null,"Банковские сборы"]
[{"$nulls":5},"Журналы",null,"Проживание",null,"Почтовые расходы"]
[{"$nulls":5},"Взносы",null,"Питание",null,"Прочее"]
[{"$nulls":5},"Членство в клубах",null,"Прокат автомобиля"]
[{"$nulls":5},"Прочее",null,"Развлечения"]
[{"$nulls":7},"Прочее"]

{"sheet":"Данные диаграммы","index":3,"n_rows":40,"n_cols":16,"rows_kept":40,"hidden":true}
[null,"*** Этот лист должен оставаться скрытым ***"]
[]
[]
[null,"Период",3]
[]
[null,null,"Янв.","Февр.","Март","Апр.","Май","Июнь","Июль","Авг.","Сент.","Окт.","Нояб.","Дек.","Год","Ср."]
[null,{"$f":"LOWER(Бюджет!B127)","v":" "},{"$f":"SUM(tblСтатьяРасходов_15[jan])","v":0},{"$f":"SUM(tblСтатьяРасходов_15[feb])","v":0},{"$f":"SUM(tblСтатьяРасходов_15[mar])","v":0},{"$f":"SUM(tblСтатьяРасходов_15[apr])","v":0},{"$f":"SUM(tblСтатьяРасходов_15[may])","v":0},{"$f":"SUM(tblСтатьяРасходов_15[jun])","v":0},{"$f":"SUM(tblСтатьяРасходов_15[jul])","v":0},{"$f":"SUM(tblСтатьяРасходов_15[aug])","v":0},{"$f":"SUM(tblСтатьяРасходов_15[sep])","v":0},{"$f":"SUM(tblСтатьяРасходов_15[oct])","v":0},{"$f":"SUM(tblСтатьяРасходов_15[nov])","v":0},{"$f":"SUM(tblСтатьяРасходов_15[dec])","v":0},{"$f":"SUM(tblСтатьяРасходов_15[year])","v":0},{"$f":"SUM(tblСтатьяРасходов_15[avg])","v":0}]
[null,{"$f":"LOWER(Бюджет!B120)","v":" "},{"$f":"SUM(tblСтатьяРасходов_14[jan])","v":0},{"$f":"SUM(tblСтатьяРасходов_14[feb])","v":0},{"$f":"SUM(tblСтатьяРасходов_14[mar])","v":0},{"$f":"SUM(tblСтатьяРасходов_14[apr])","v":0},{"$f":"SUM(tblСтатьяРасходов_14[may])","v":0},{"$f":"SUM(tblСтатьяРасходов_14[jun])","v":0},{"$f":"SUM(tblСтатьяРасходов_14[jul])","v":0},{"$f":"SUM(tblСтатьяРасходов_14[aug])","v":0},{"$f":"SUM(tblСтатьяРасходов_14[sep])","v":0},{"$f":"SUM(tblСтатьяРасходов_14[oct])","v":0},{"$f":"SUM(tblСтатьяРасходов_14[nov])","v":0},{"$f":"SUM(tblСтатьяРасходов_14[dec])","v":0},{"$f":"SUM(tblСтатьяРасходов_14[year])","v":0},{"$f":"SUM(tblСтатьяРасходов_14[avg])","v":0}]
[null,{"$f":"LOWER(Бюджет!B113)","v":" "},{"$f":"SUM(tblСтатьяРасходов_13[jan])","v":0},{"$f":"SUM(tblСтатьяРасходов_13[feb])","v":0},{"$f":"SUM(tblСтатьяРасходов_13[mar])","v":0},{"$f":"SUM(tblСтатьяРасходов_13[apr])","v":0},{"$f":"SUM(tblСтатьяРасходов_13[may])","v":0},{"$f":"SUM(tblСтатьяРасходов_13[jun])","v":0},{"$f":"SUM(tblСтатьяРасходов_13[jul])","v":0},{"$f":"SUM(tblСтатьяРасходов_13[aug])","v":0},{"$f":"SUM(tblСтатьяРасходов_13[sep])","v":0},{"$f":"SUM(tblСтатьяРасходов_13[oct])","v":0},{"$f":"SUM(tblСтатьяРасходов_13[nov])","v":0},{"$f":"SUM(tblСтатьяРасходов_13[dec])","v":0},{"$f":"SUM(tblСтатьяРасходов_13[year])","v":0},{"$f":"SUM(tblСтатьяРасходов_13[avg])","v":0}]
[null,{"$f":"LOWER(Бюджет!B106)","v":" "},{"$f":"SUM(tblСтатьяРасходов_12[jan])","v":0},{"$f":"SUM(tblСтатьяРасходов_12[feb])","v":0},{"$f":"SUM(tblСтатьяРасходов_12[mar])","v":0},{"$f":"SUM(tblСтатьяРасходов_12[apr])","v":0},{"$f":"SUM(tblСтатьяРасходов_12[may])","v":0},{"$f":"SUM(tblСтатьяРасходов_12[jun])","v":0},{"$f":"SUM(tblСтатьяРасходов_12[jul])","v":0},{"$f":"SUM(tblСтатьяРасходов_12[aug])","v":0},{"$f":"SUM(tblСтатьяРасходов_12[sep])","v":0},{"$f":"SUM(tblСтатьяРасходов_12[oct])","v":0},{"$f":"SUM(tblСтатьяРасходов_12[nov])","v":0},{"$f":"SUM(tblСтатьяРасходов_12[dec])","v":0},{"$f":"SUM(tblСтатьяРасходов_12[year])","v":0},{"$f":"SUM(tblСтатьяРасходов_12[avg])","v":0}]
[null,{"$f":"LOWER(Бюджет!B99)","v":" "},{"$f":"SUM(tblСтатьяРасходов_11[jan])","v":0},{"$f":"SUM(tblСтатьяРасходов_11[feb])","v":0},{"$f":"SUM(tblСтатьяРасходов_11[mar])","v":0},{"$f":"SUM(tblСтатьяРасходов_11[apr])","v":0},{"$f":"SUM(tblСтатьяРасходов_11[may])","v":0},{"$f":"SUM(tblСтатьяРасходов_11[jun])","v":0},{"$f":"SUM(tblСтатьяРасходов_11[jul])","v":0},{"$f":"SUM(tblСтатьяРасходов_11[aug])","v":0},{"$f":"SUM(tblСтатьяРасходов_11[sep])","v":0},{"$f":"SUM(tblСтатьяРасходов_11[oct])","v":0},{"$f":"SUM(tblСтатьяРасходов_11[nov])","v":0},{"$f":"SUM(tblСтатьяРасходов_11[dec])","v":0},{"$f":"SUM(tblСтатьяРасходов_11[year])","v":0},{"$f":"SUM(tblСтатьяРасходов_11[avg])","v":0}]
[null,{"$f":"LOWER(Бюджет!B92)","v":"выплаты"},{"$f":"SUM(tblСтатьяРасходов_10[jan])","v":650},{"$f":"SUM(tblСтатьяРасходов_10[feb])","v":200},{"$f":"SUM(tblСтатьяРасходов_10[mar])","v":200},{"$f":"SUM(tblСтатьяРасходов_10[apr])","v":650},{"$f":"SUM(tblСтатьяРасходов_10[may])","v":200},{"$f":"SUM(tblСтатьяРасходов_10[jun])","v":200},{"$f":"SUM(tblСтатьяРасходов_10[jul])","v":650},{"$f":"SUM(tblСтатьяРасходов_10[aug])","v":200},{"$f":"SUM(tblСтатьяРасходов_10[sep])","v":200},{"$f":"SUM(tblСтатьяРасходов_10[oct])","v":650},{"$f":"SUM(tblСтатьяРасходов_10[nov])","v":200},{"$f":"SUM(tblСтатьяРасходов_10[dec])","v":200},{"$f":"SUM(tblСтатьяРасходов_10[year])","v":{"v":4200,"d":"4,200"}},{"$f":"SUM(tblСтатьяРасходов_10[avg])","v":350}]
[null,{"$f":"LOWER(Бюджет!B85)","v":"сбережения"},{"$f":"SUM(tblСтатьяРасходов_09[jan])","v":800},{"$f":"SUM(tblСтатьяРасходов_09[feb])","v":800},{"$f":"SUM(tblСтатьяРасходов_09[mar])","v":800},{"$f":"SUM(tblСтатьяРасходов_09[apr])","v":800},{"$f":"SUM(tblСтатьяРасходов_09[may])","v":800},{"$f":"SUM(tblСтатьяРасходов_09[jun])","v":500},{"$f":"SUM(tblСтатьяРасходов_09[jul])","v":500},{"$f":"SUM(tblСтатьяРасходов_09[aug])","v":500},{"$f":"SUM(tblСтатьяРасходов_09[sep])","v":800},{"$f":"SUM(tblСтатьяРасходов_09[oct])","v":800},{"$f":"SUM(tblСтатьяРасходов_09[nov])","v":800},{"$f":"SUM(tblСтатьяРасходов_09[dec])","v":800},{"$f":"SUM(tblСтатьяРасходов_09[year])","v":{"v":8700,"d":"8,700"}},{"$f":"SUM(tblСтатьяРасходов_09[avg])","v":725}]
[null,{"$f":"LOWER(Бюджет!B78)","v":"благотворительность"},{"$f":"SUM(tblСтатьяРасходов_08[jan])","v":0},{"$f":"SUM(tblСтатьяРасходов_08[feb])","v":100},{"$f":"SUM(tblСтатьяРасходов_08[mar])","v":100},{"$f":"SUM(tblСтатьяРасходов_08[apr])","v":100},{"$f":"SUM(tblСтатьяРасходов_08[may])","v":100},{"$f":"SUM(tblСтатьяРасходов_08[jun])","v":100},{"$f":"SUM(tblСтатьяРасходов_08[jul])","v":100},{"$f":"SUM(tblСтатьяРасходов_08[aug])","v":100},{"$f":"SUM(tblСтатьяРасходов_08[sep])","v":100},{"$f":"SUM(tblСтатьяРасходов_08[oct])","v":100},{"$f":"SUM(tblСтатьяРасходов_08[nov])","v":100},{"$f":"SUM(tblСтатьяРасходов_08[dec])","v":100},{"$f":"SUM(tblСтатьяРасходов_08[year])","v":{"v":1100,"d":"1,100"}},{"$f":"SUM(tblСтатьяРасходов_08[avg])","v":{"v":91.66666666666666,"d":"92"}}]
[null,{"$f":"LOWER(Бюджет!B71)","v":"образование"},{"$f":"SUM(tblСтатьяРасходов_07[jan])","v":0},{"$f":"SUM(tblСтатьяРасходов_07[feb])","v":0},{"$f":"SUM(tblСтатьяРасходов_07[mar])","v":625},{"$f":"SUM(tblСтатьяРасходов_07[apr])","v":0},{"$f":"SUM(tblСтатьяРасходов_07[may])","v":0},{"$f":"SUM(tblСтатьяРасходов_07[jun])","v":0},{"$f":"SUM(tblСтатьяРасходов_07[jul])","v":0},{"$f":"SUM(tblСтатьяРасходов_07[aug])","v":0},{"$f":"SUM(tblСтатьяРасходов_07[sep])","v":625},{"$f":"SUM(tblСтатьяРасходов_07[oct])","v":0},{"$f":"SUM(tblСтатьяРасходов_07[nov])","v":0},{"$f":"SUM(tblСтатьяРасходов_07[dec])","v":0},{"$f":"SUM(tblСтатьяРасходов_07[year])","v":{"v":1250,"d":"1,250"}},{"$f":"SUM(tblСтатьяРасходов_07[avg])","v":{"v":104.16666666666667,"d":"104"}}]
[null,{"$f":"LOWER(Бюджет!B64)","v":"страховка"},{"$f":"SUM(tblСтатьяРасходов_06[jan])","v":975},{"$f":"SUM(tblСтатьяРасходов_06[feb])","v":975},{"$f":"SUM(tblСтатьяРасходов_06[mar])","v":975},{"$f":"SUM(tblСтатьяРасходов_06[apr])","v":975},{"$f":"SUM(tblСтатьяРасходов_06[may])","v":975},{"$f":"SUM(tblСтатьяРасходов_06[jun])","v":975},{"$f":"SUM(tblСтатьяРасходов_06[jul])","v":975},{"$f":"SUM(tblСтатьяРасходов_06[aug])","v":975},{"$f":"SUM(tblСтатьяРасходов_06[sep])","v":975},{"$f":"SUM(tblСтатьяРасходов_06[oct])","v":975},{"$f":"SUM(tblСтатьяРасходов_06[nov])","v":975},{"$f":"SUM(tblСтатьяРасходов_06[dec])","v":975},{"$f":"SUM(tblСтатьяРасходов_06[year])","v":{"v":11700,"d":"11,700"}},{"$f":"SUM(tblСтатьяРасходов_06[avg])","v":975}]
[null,{"$f":"LOWER(Бюджет!B57)","v":"здоровье"},{"$f":"SUM(tblСтатьяРасходов_05[jan])","v":25},{"$f":"SUM(tblСтатьяРасходов_05[feb])","v":60},{"$f":"SUM(tblСтатьяРасходов_05[mar])","v":175},{"$f":"SUM(tblСтатьяРасходов_05[apr])","v":25},{"$f":"SUM(tblСтатьяРасходов_05[may])","v":60},{"$f":"SUM(tblСтатьяРасходов_05[jun])","v":60},{"$f":"SUM(tblСтатьяРасходов_05[jul])","v":60},{"$f":"SUM(tblСтатьяРасходов_05[aug])","v":25},{"$f":"SUM(tblСтатьяРасходов_05[sep])","v":175},{"$f":"SUM(tblСтатьяРасходов_05[oct])","v":60},{"$f":"SUM(tblСтатьяРасходов_05[nov])","v":25},{"$f":"SUM(tblСтатьяРасходов_05[dec])","v":25},{"$f":"SUM(tblСтатьяРасходов_05[year])","v":775},{"$f":"SUM(tblСтатьяРасходов_05[avg])","v":{"v":64.58333333333334,"d":"65"}}]
[null,{"$f":"LOWER(Бюджет!B48)","v":"транспорт"},{"$f":"SUM(tblСтатьяРасходов_04[jan])","v":{"v":1110,"d":"1,110"}},{"$f":"SUM(tblСтатьяРасходов_04[feb])","v":{"v":1025,"d":"1,025"}},{"$f":"SUM(tblСтатьяРасходов_04[mar])","v":925},{"$f":"SUM(tblСтатьяРасходов_04[apr])","v":{"v":1025,"d":"1,025"}},{"$f":"SUM(tblСтатьяРасходов_04[may])","v":{"v":1325,"d":"1,325"}},{"$f":"SUM(tblСтатьяРасходов_04[jun])","v":{"v":1200,"d":"1,200"}},{"$f":"SUM(tblСтатьяРасходов_04[jul])","v":{"v":1100,"d":"1,100"}},{"$f":"SUM(tblСтатьяРасходов_04[aug])","v":{"v":1200,"d":"1,200"}},{"$f":"SUM(tblСтатьяРасходов_04[sep])","v":{"v":1150,"d":"1,150"}},{"$f":"SUM(tblСтатьяРасходов_04[oct])","v":{"v":1025,"d":"1,025"}},{"$f":"SUM(tblСтатьяРасходов_04[nov])","v":925},{"$f":"SUM(tblСтатьяРасходов_04[dec])","v":925},{"$f":"SUM(tblСтатьяРасходов_04[year])","v":{"v":12935,"d":"12,935"}},{"$f":"SUM(tblСтатьяРасходов_04[avg])","v":{"v":1077.9166666666665,"d":"1,078"}}]
[null,{"$f":"LOWER(Бюджет!B39)","v":"дети"},{"$f":"SUM(tblСтатьяРасходов_03[jan])","v":{"v":2373,"d":"2,373"}},{"$f":"SUM(tblСтатьяРасходов_03[feb])","v":500},{"$f":"SUM(tblСтатьяРасходов_03[mar])","v":350},{"$f":"SUM(tblСтатьяРасходов_03[apr])","v":250},{"$f":"SUM(tblСтатьяРасходов_03[may])","v":350},{"$f":"SUM(tblСтатьяРасходов_03[jun])","v":450},{"$f":"SUM(tblСтатьяРасходов_03[jul])","v":200},{"$f":"SUM(tblСтатьяРасходов_03[aug])","v":545},{"$f":"SUM(tblСтатьяРасходов_03[sep])","v":350},{"$f":"SUM(tblСтатьяРасходов_03[oct])","v":350},{"$f":"SUM(tblСтатьяРасходов_03[nov])","v":250},{"$f":"SUM(tblСтатьяРасходов_03[dec])","v":350},{"$f":"SUM(tblСтатьяРасходов_03[year])","v":{"v":6318,"d":"6,318"}},{"$f":"SUM(tblСтатьяРасходов_03[avg])","v":{"v":526.5,"d":"527"}}]
[null,{"$f":"LOWER(Бюджет!B30)","v":"бытовые нужды"},{"$f":"SUM(tblСтатьяРасходов_02[jan])","v":795},{"$f":"SUM(tblСтатьяРасходов_02[feb])","v":375},{"$f":"SUM(tblСтатьяРасходов_02[mar])","v":550},{"$f":"SUM(tblСтатьяРасходов_02[apr])","v":825},{"$f":"SUM(tblСтатьяРасходов_02[may])","v":500},{"$f":"SUM(tblСтатьяРасходов_02[jun])","v":450},{"$f":"SUM(tblСтатьяРасходов_02[jul])","v":875},{"$f":"SUM(tblСтатьяРасходов_02[aug])","v":475},{"$f":"SUM(tblСтатьяРасходов_02[sep])","v":400},{"$f":"SUM(tblСтатьяРасходов_02[oct])","v":825},{"$f":"SUM(tblСтатьяРасходов_02[nov])","v":575},{"$f":"SUM(tblСтатьяРасходов_02[dec])","v":375},{"$f":"SUM(tblСтатьяРасходов_02[year])","v":{"v":7020,"d":"7,020"}},{"$f":"SUM(tblСтатьяРасходов_02[avg])","v":585}]
[null,{"$f":"LOWER(Бюджет!B21)","v":"жилье"},{"$f":"SUM(tblСтатьяРасходов_01[jan])","v":{"v":1208,"d":"1,208"}},{"$f":"SUM(tblСтатьяРасходов_01[feb])","v":{"v":1208,"d":"1,208"}},{"$f":"SUM(tblСтатьяРасходов_01[mar])","v":{"v":1233,"d":"1,233"}},{"$f":"SUM(tblСтатьяРасходов_01[apr])","v":{"v":1208,"d":"1,208"}},{"$f":"SUM(tblСтатьяРасходов_01[may])","v":{"v":1158,"d":"1,158"}},{"$f":"SUM(tblСтатьяРасходов_01[jun])","v":{"v":1183,"d":"1,183"}},{"$f":"SUM(tblСтатьяРасходов_01[jul])","v":{"v":1283,"d":"1,283"}},{"$f":"SUM(tblСтатьяРасходов_01[aug])","v":{"v":1333,"d":"1,333"}},{"$f":"SUM(tblСтатьяРасходов_01[sep])","v":{"v":1208,"d":"1,208"}},{"$f":"SUM(tblСтатьяРасходов_01[oct])","v":{"v":1158,"d":"1,158"}},{"$f":"SUM(tblСтатьяРасходов_01[nov])","v":{"v":1208,"d":"1,208"}},{"$f":"SUM(tblСтатьяРасходов_01[dec])","v":{"v":1208,"d":"1,208"}},{"$f":"SUM(tblСтатьяРасходов_01[year])","v":{"v":14596,"d":"14,596"}},{"$f":"SUM(tblСтатьяРасходов_01[avg])","v":{"v":1216.3333333333335,"d":"1,216"}}]
[]
[]
[]
[]
[null,"Общий денежный поток",{"$f":"SUM(Бюджет!$C$8:C$8)","v":{"v":-3714,"d":"-3,714"}},{"$f":"SUM(Бюджет!$C$8:D$8)","v":76},{"$f":"SUM(Бюджет!$C$8:E$8)","v":{"v":-1857,"d":"-1,857"}},{"$f":"SUM(Бюджет!$C$8:F$8)","v":{"v":-3670,"d":"-3,670"}},{"$f":"SUM(Бюджет!$C$8:G$8)","v":-138},{"$f":"SUM(Бюджет!$C$8:H$8)","v":{"v":-3731,"d":"-3,731"}},{"$f":"SUM(Бюджет!$C$8:I$8)","v":{"v":-7974,"d":"-7,974"}},{"$f":"SUM(Бюджет!$C$8:J$8)","v":{"v":-6827,"d":"-6,827"}},{"$f":"SUM(Бюджет!$C$8:K$8)","v":{"v":-8810,"d":"-8,810"}},{"$f":"SUM(Бюджет!$C$8:L$8)","v":{"v":-10753,"d":"-10,753"}},{"$f":"SUM(Бюджет!$C$8:M$8)","v":{"v":-6811,"d":"-6,811"}},{"$f":"SUM(Бюджет!$C$8:N$8)","v":{"v":-7769,"d":"-7,769"}},{"$f":"SUM(Бюджет!$C$8:O$8)","v":{"v":-15538,"d":"-15,538"}}]
[]
[null,"Годовой приток денежного потока",{"$f":"IF(Бюджет!C$8<0,NA(),IF(период+2<>COLUMN(Бюджет!C$8),NA(),Бюджет!C$8))","v":{"$error":"#N/A"}},{"$f":"IF(Бюджет!D$8<0,NA(),IF(период+2<>COLUMN(Бюджет!D$8),NA(),Бюджет!D$8))","v":{"$error":"#N/A"}},{"$f":"IF(Бюджет!E$8<0,NA(),IF(период+2<>COLUMN(Бюджет!E$8),NA(),Бюджет!E$8))","v":{"$error":"#N/A"}},{"$f":"IF(Бюджет!F$8<0,NA(),IF(период+2<>COLUMN(Бюджет!F$8),NA(),Бюджет!F$8))","v":{"$error":"#N/A"}},{"$f":"IF(Бюджет!G$8<0,NA(),IF(период+2<>COLUMN(Бюджет!G$8),NA(),Бюджет!G$8))","v":{"$error":"#N/A"}},{"$f":"IF(Бюджет!H$8<0,NA(),IF(период+2<>COLUMN(Бюджет!H$8),NA(),Бюджет!H$8))","v":{"$error":"#N/A"}},{"$f":"IF(Бюджет!I$8<0,NA(),IF(период+2<>COLUMN(Бюджет!I$8),NA(),Бюджет!I$8))","v":{"$error":"#N/A"}},{"$f":"IF(Бюджет!J$8<0,NA(),IF(период+2<>COLUMN(Бюджет!J$8),NA(),Бюджет!J$8))","v":{"$error":"#N/A"}},{"$f":"IF(Бюджет!K$8<0,NA(),IF(период+2<>COLUMN(Бюджет!K$8),NA(),Бюджет!K$8))","v":{"$error":"#N/A"}},{"$f":"IF(Бюджет!L$8<0,NA(),IF(период+2<>COLUMN(Бюджет!L$8),NA(),Бюджет!L$8))","v":{"$error":"#N/A"}},{"$f":"IF(Бюджет!M$8<0,NA(),IF(период+2<>COLUMN(Бюджет!M$8),NA(),Бюджет!M$8))","v":{"$error":"#N/A"}},{"$f":"IF(Бюджет!N$8<0,NA(),IF(период+2<>COLUMN(Бюджет!N$8),NA(),Бюджет!N$8))","v":{"$error":"#N/A"}},{"$f":"IF(Бюджет!O$8<0,NA(),IF(период+2<>COLUMN(Бюджет!O$8),NA(),Бюджет!O$8))","v":{"$error":"#N/A"}}]
[null,"Годовой отток денежного потока",{"$f":"IF(Бюджет!C$8>=0,NA(),IF(период+2<>COLUMN(Бюджет!C$8),NA(),Бюджет!C$8))","v":{"$error":"#N/A"}},{"$f":"IF(Бюджет!D$8>=0,NA(),IF(период+2<>COLUMN(Бюджет!D$8),NA(),Бюджет!D$8))","v":{"$error":"#N/A"}},{"$f":"IF(Бюджет!E$8>=0,NA(),IF(период+2<>COLUMN(Бюджет!E$8),NA(),Бюджет!E$8))","v":{"v":-1933,"d":"-1,933"}},{"$f":"IF(Бюджет!F$8>=0,NA(),IF(период+2<>COLUMN(Бюджет!F$8),NA(),Бюджет!F$8))","v":{"$error":"#N/A"}},{"$f":"IF(Бюджет!G$8>=0,NA(),IF(период+2<>COLUMN(Бюджет!G$8),NA(),Бюджет!G$8))","v":{"$error":"#N/A"}},{"$f":"IF(Бюджет!H$8>=0,NA(),IF(период+2<>COLUMN(Бюджет!H$8),NA(),Бюджет!H$8))","v":{"$error":"#N/A"}},{"$f":"IF(Бюджет!I$8>=0,NA(),IF(период+2<>COLUMN(Бюджет!I$8),NA(),Бюджет!I$8))","v":{"$error":"#N/A"}},{"$f":"IF(Бюджет!J$8>=0,NA(),IF(период+2<>COLUMN(Бюджет!J$8),NA(),Бюджет!J$8))","v":{"$error":"#N/A"}},{"$f":"IF(Бюджет!K$8>=0,NA(),IF(период+2<>COLUMN(Бюджет!K$8),NA(),Бюджет!K$8))","v":{"$error":"#N/A"}},{"$f":"IF(Бюджет!L$8>=0,NA(),IF(период+2<>COLUMN(Бюджет!L$8),NA(),Бюджет!L$8))","v":{"$error":"#N/A"}},{"$f":"IF(Бюджет!M$8>=0,NA(),IF(период+2<>COLUMN(Бюджет!M$8),NA(),Бюджет!M$8))","v":{"$error":"#N/A"}},{"$f":"IF(Бюджет!N$8>=0,NA(),IF(период+2<>COLUMN(Бюджет!N$8),NA(),Бюджет!N$8))","v":{"$error":"#N/A"}},{"$f":"IF(Бюджет!O$8>=0,NA(),IF(период+2<>COLUMN(Бюджет!O$8),NA(),Бюджет!O$8))","v":{"$error":"#N/A"}}]
{"$rows_empty":7}
[null,{"$f":"отображать_длительный_период","v":"Март"}]
[null,{"$f":"отображать_длительный_период & \" Доходы\"","v":"Март Доходы"},{"$f":"INDEX(Бюджет!$C$6:$P$6,,период)","v":{"v":4000,"d":"4,000р."}}]
[null,{"$f":"отображать_длительный_период & \" Расходы: \" & TEXT(INDEX(Бюджет!$C$7:$P$7,,период),\"# ##0р.\")","v":"Март Расходы: 5 933р."},{"$f":"INDEX(Бюджет!$C$7:$P$7,,период)","v":{"v":5933,"d":"5,933р."}}]
[null,{"$f":"отображать_длительный_период & \"Движение средств\"","v":"МартДвижение средств"},{"$f":"ABS(INDEX(Бюджет!$C$8:$P$8,,период))","v":{"v":1933,"d":"1,933р."}},{"$f":"REPT(\"-\",INDEX(Бюджет!$C$8:$P$8,,период)<0)","v":"-"}]